fUST/lending_fUST_20250828
["ID","MTS","AMOUNT","RATE_DAILY","PERIOD"]
[381823899,1756359595665,-325.11598612,0.00019899,2]
[381823900,1756359595694,-839.43,0.00019899,2]
[381823901,1756359595723,-300.0,0.0001991,2]
[381823902,1756359595753,-2053.36802776,0.0001991,2]
[381823903,1756359596116,-480.0,0.00019894,2]
[381823904,1756359596148,-2964.18197224,0.0001991,2]
[381823905,1756359596180,-95.32685588,0.00019911,2]
[381823906,1756359596465,-2920.99234376,0.00019911,2]
[381823907,1756359596497,-414.33812244,0.00019911,2]
[381823908,1756359596527,-480.0,0.00019911,2]
[381823909,1756359596558,-687.0990676,0.00019911,2]
[381823910,1756359596596,-995.1509324,0.00019911,2]
[381823911,1756359596627,-2982.89,0.00019911,2]
[381823912,1756359596657,-704.86,0.00019911,2]
[381823913,1756359597392,-480.0,0.00019896,2]
[381823914,1756359597402,-480.0,0.00019896,2]
[381823915,1756359597413,-260.034316,0.00019905,2]
[381823916,1756359597433,-414.33812244,0.00019905,2]
[381823917,1756359597448,-480.0,0.00019905,2]
[381823918,1756359597464,-1682.25,0.00019905,2]
[381823919,1756359597479,-995.1509324,0.00019905,2]
[381823920,1756359597494,-2982.89,0.00019905,2]
[381823921,1756359597510,-704.86,0.00019905,2]
[381823922,1756359597525,-634.2081352,0.00019905,2]
[381823923,1756359632914,-666.0,0.00018957,2]
[381823924,1756359632953,-1200.0,0.00019462,2]
[381823925,1756359632986,-480.0,0.00019696,2]
[381823926,1756359633023,-480.0,0.00019696,2]
[381823927,1756359633065,-592.26,0.00019696,2]
[381823928,1756359633103,-756.64,0.00019696,2]
[381823929,1756359633144,-480.0,0.00019696,2]
[381823930,1756359633179,-210.21,0.00019696,2]
[381823931,1756359633379,-269.79,0.00019696,2]
[381823932,1756359633418,-587.63,0.00019696,2]
[381823933,1756359633457,-533.54,0.00019795,2]
[381823934,1756359633494,-480.0,0.00019795,2]
[381823935,1756359633531,-2979.26,0.00019894,2]
[381823936,1756359633753,-480.0,0.00019896,2]
[381823937,1756359633789,-481.39714591,0.00019896,2]
[381823938,1756359633823,-480.0,0.00019896,2]
[381823939,1756359633857,-480.0,0.00019896,2]
[381823940,1756359633893,-480.0,0.00019896,2]
[381823941,1756359633929,-480.0,0.00019896,2]
[381823942,1756359633964,-480.0,0.00019896,2]
[381823943,1756359634000,-480.0,0.00019896,2]
[381823944,1756359634035,-480.0,0.00019896,2]
[381823945,1756359634077,-480.0,0.00019896,2]
[381823946,1756359634583,-481.49765861,0.00019896,2]
[381823947,1756359634617,-480.0,0.00019896,2]
[381823948,1756359634651,-480.0,0.00019896,2]
[381823949,1756359634682,-480.0,0.00019896,2]
[381823950,1756359634714,-480.0,0.00019896,2]
[381823951,1756359634744,-480.0,0.00019896,2]
[381823952,1756359634773,-480.0,0.00019896,2]
[381823953,1756359635148,-480.0,0.00019896,2]
[381823954,1756359635178,-480.0,0.00019896,2]
[381823955,1756359635208,-480.0,0.00019896,2]
[381823956,1756359635274,-480.0,0.00019896,2]
[381823957,1756359635303,-480.0,0.00019896,2]
[381823958,1756359635334,-480.0,0.00019896,2]
[381823959,1756359635365,-480.0,0.00019896,2]
[381823960,1756359635396,-480.0,0.00019896,2]
[381823961,1756359635428,-480.0,0.00019896,2]
[381823962,1756359635460,-743.25,0.00019899,2]
[381823963,1756359635493,-1186.36411816,0.00019905,2]
[381823964,1756359635735,-1200.0,0.0001991,2]
[381823965,1756359635768,-300.0,0.0001991,2]
[381823966,1756359635802,-1203.85,0.0001991,2]
[381823967,1756359635835,-837.86,0.00019911,2]
[381823968,1756359635879,-1398.98,0.00019911,2]
[381823969,1756359636122,-480.0,0.00019894,2]
[381823970,1756359636157,-480.0,0.00019911,2]
[381823971,1756359636189,-623.28,0.00019911,2]
[381823972,1756359636222,-1106.04,0.00019911,2]
[381823973,1756359636253,-516.53,0.00019911,2]
[381823974,1756359636285,-1376.24,0.00019911,2]
[381823975,1756359636318,-7.64,0.00019911,2]
[381823976,1756359636397,-820.55,0.00019911,2]
[381823977,1756359636432,-675.49,0.00019911,2]
[381823978,1756359636465,-480.0,0.00019911,2]
[381823979,1756359636497,-523.83,0.00019911,2]
[381823980,1756359636529,-1000.89,0.00019912,2]
[381823981,1756359636563,-1000.89,0.00019912,2]
[381823982,1756359636646,-1000.89,0.00019912,2]
[381823983,1756359636678,-1000.89,0.00019912,2]
[381823984,1756359636710,-1000.89,0.00019912,2]
[381823985,1756359636743,-592.26,0.0001997,2]
[381823986,1756359636775,-756.64,0.0001997,2]
[381823987,1756359636806,-480.0,0.0001997,2]
[381823988,1756359637242,-480.0,0.00019897,2]
[381823989,1756359637273,-587.63,0.0001997,2]
[381823990,1756359637304,-162.20470365,0.00019973,2]
[381823991,1756359637334,-500.0,0.00019973,2]
[381823992,1756359637363,-500.0,0.00019973,2]
[381823993,1756359637394,-500.0,0.00019973,2]
[381823994,1756359637423,-500.0,0.00019973,2]
[381823995,1756359637454,-169.79098845,0.00019994,2]
[381823996,1756359637486,-766.01472556,0.00019997,2]
[381823997,1756359639120,-361.71958234,0.00019896,2]
[381823998,1756359639143,-118.28041766,0.00019896,2]
[381823999,1756359639153,-469.34958234,0.00019997,2]
[381824000,1756359639173,-162.20470365,0.00019997,2]
[381824001,1756359639191,-500.0,0.00019997,2]
[381824002,1756359639210,-500.0,0.00019997,2]
[381824003,1756359639228,-37.17487869,0.00019997,2]
[381824004,1756359639241,-462.82512131,0.00020009,2]
[381824005,1756359639279,-500.0,0.00020009,2]
[381824006,1756359639352,-38.06487869,0.00020009,2]
[381824007,1756359639362,-131.72610976,0.00020009,2]
[381824008,1756359639380,-869.16389024,0.00020009,2]
[381824009,1756359639390,-1000.89,0.00020009,2]
[381824010,1756359639399,-564.69,0.00020009,2]
[381824011,1756359643053,-480.0,0.00019896,2]
[381824012,1756359643087,-480.0,0.00019896,2]
[381824013,1756359643119,-480.0,0.00019896,2]
[381824014,1756359643152,-480.0,0.00019896,2]
[381824015,1756359643183,-495.9,0.00019911,2]
[381824016,1756359643216,-436.2,0.00020009,2]
[381824017,1756359643248,-1000.89,0.00020009,2]
[381824018,1756359643282,-1000.89,0.00020009,2]
[381824019,1756359643451,-480.0,0.00019896,2]
[381824020,1756359643483,-1000.89,0.00020009,2]
[381824021,1756359643515,-1000.89,0.00020009,2]
[381824022,1756359643546,-1000.89,0.00020009,2]
[381824023,1756359643577,-1000.89,0.00020009,2]
[381824024,1756359643612,-32.0,0.00020009,2]
[381824025,1756359643713,-968.89,0.00020009,2]
[381824026,1756359643746,-1000.89,0.00020009,2]
[381824027,1756359643778,-1000.89,0.00020009,2]
[381824028,1756359643809,-1001.07782386,0.00020009,2]
[381824029,1756359643840,-517.88,0.0002001,2]
[381824030,1756359644053,-2017.27,0.0002001,2]
[381824031,1756359644088,-582.76,0.0002001,2]
[381824032,1756359644120,-480.0,0.0002001,2]
[381824033,1756359644155,-380.8389535,0.00020052,2]
[381824034,1756359644190,-480.0,0.00020069,2]
[381824035,1756359644223,-711.38,0.00020069,2]
[381824036,1756359644377,-2269.84,0.00020069,2]
[381824037,1756359644411,-480.0,0.00020069,2]
[381824038,1756359644444,-480.0,0.00020069,2]
[381824039,1756359644478,-998.09,0.0002007,2]
[381824040,1756359645176,-1051.50426914,0.0002007,2]
[381824041,1756359645198,-480.0,0.0002007,2]
[381824042,1756359645226,-480.0,0.0002007,2]
[381824043,1756359645247,-998.09,0.0002007,2]
[381824044,1756359645275,-1544.15,0.0002007,2]
[381824045,1756359645348,-480.0,0.00019796,2]
[381824046,1756359645384,-9520.01,0.0002007,2]
[381824047,1756359645412,-10000.01,0.0002007,2]
[381824048,1756359645532,-338.68559655,0.0002007,2]
[381824049,1756359645542,-9661.32440345,0.0002007,2]
[381824050,1756359645570,-10000.01,0.0002007,2]
[381824051,1756359645586,-480.0,0.0002007,2]
[381824052,1756359645608,-9040.01,0.0002007,2]
[381824053,1756359652967,-250.0,0.00018977,2]
[381824054,1756359652997,-480.0,0.00019696,2]
[381824055,1756359653028,-480.0,0.00019696,2]
[381824056,1756359653062,-914.91,0.00019795,2]
[381824057,1756359653094,-818.45,0.00019894,2]
[381824058,1756359653126,-480.0,0.00019896,2]
[381824059,1756359653157,-480.0,0.00019896,2]
[381824060,1756359653188,-644.36,0.00019896,2]
[381824061,1756359653222,-424.57,0.00019896,2]
[381824062,1756359653373,-55.43,0.00019896,2]
[381824063,1756359653404,-480.0,0.0001997,2]
[381824064,1756359653434,-480.0,0.0001997,2]
[381824065,1756359653466,-914.91,0.00020069,2]
[381824066,1756359653643,-920.95,0.00019696,2]
[381824067,1756359653689,-5279.85,0.0002007,2]
[381824068,1756359653718,-920.95,0.0001997,2]
[381824069,1756359653734,-8158.11,0.0002007,2]
[381824070,1756359653791,-10000.01,0.0002007,2]
[381824071,1756359653954,-10000.01,0.0002007,2]
[381824072,1756359654158,-10000.01,0.0002007,2]
[381824073,1756359654294,-199.6988805,0.0001997,2]
[381824074,1756359654338,-9600.612239,0.0002007,2]
[381824075,1756359654487,-10000.01,0.0002007,2]
[381824076,1756359654671,-10000.01,0.0002007,2]
[381824077,1756359655329,-10000.01,0.0002007,2]
[381824078,1756359657488,207.0,0.00025,120]
[381824079,1756359693110,-480.0,0.00019696,2]
[381824080,1756359693144,-1801.77,0.00019696,2]
[381824081,1756359693178,-485.11,0.00019696,2]
[381824082,1756359693212,-480.0,0.00019696,2]
[381824083,1756359693247,-1744.6,0.00019696,2]
[381824084,1756359693344,-17.05,0.00019696,2]
[381824085,1756359693649,-838.67,0.00019795,2]
[381824086,1756359693681,-516.3853136,0.00019896,2]
[381824087,1756359693712,-480.0,0.00019896,2]
[381824088,1756359693743,-480.0,0.00019896,2]
[381824089,1756359693775,-237.9481762,0.00019896,2]
[381824090,1756359693806,-480.0,0.00019896,2]
[381824091,1756359693837,-480.0,0.00019896,2]
[381824092,1756359693868,-480.0,0.00019896,2]
[381824093,1756359693902,-804.45,0.00019896,2]
[381824094,1756359694061,-480.0,0.00019896,2]
[381824095,1756359694095,-480.0,0.00019896,2]
[381824096,1756359694130,-480.0,0.00019896,2]
[381824097,1756359694164,-480.0,0.00019896,2]
[381824098,1756359694197,-480.0,0.00019896,2]
[381824099,1756359694228,-480.0,0.00019896,2]
[381824100,1756359694259,-480.0,0.00019896,2]
[381824101,1756359694293,-480.0,0.00019896,2]
[381824102,1756359694324,-480.0,0.00019896,2]
[381824103,1756359694355,-552.24,0.00019896,2]
[381824104,1756359694494,-480.0,0.00019896,2]
[381824105,1756359694525,-1133.25,0.00019896,2]
[381824106,1756359694557,-480.0,0.00019896,2]
[381824107,1756359694588,-480.0,0.00019896,2]
[381824108,1756359694620,-480.0,0.00019896,2]
[381824109,1756359694654,-480.0,0.00019896,2]
[381824110,1756359694685,-480.0,0.00019896,2]
[381824111,1756359694718,-480.0,0.00019896,2]
[381824112,1756359694750,-434.59,0.00019896,2]
[381824113,1756359695014,-144.33,0.00019896,2]
[381824114,1756359695046,-480.0,0.00019896,2]
[381824115,1756359695080,-480.0,0.00019896,2]
[381824116,1756359695112,-480.0,0.00019896,2]
[381824117,1756359695142,-279.25517091,0.00019896,2]
[381824118,1756359695172,-480.0,0.00019897,2]
[381824119,1756359695203,-480.0,0.00019899,2]
[381824120,1756359695234,-480.0,0.00019899,2]
[381824121,1756359695742,-354.45,0.000199,2]
[381824122,1756359696045,-480.0,0.000199,2]
[381824123,1756359696066,-3392.83965818,0.000199,2]
[381824124,1756359696113,-3694.48962523,0.000199,2]
[381824125,1756359696143,-2611.03074954,0.000199,2]
[381824126,1756359696153,-3694.48962523,0.0001991,2]
[381824127,1756359696173,-1321.89037477,0.0001991,2]
[381824128,1756359696183,-480.0,0.00019911,2]
[381824129,1756359696192,-591.72,0.00019911,2]
[381824130,1756359696201,-1135.01,0.00019911,2]
[381824131,1756359696211,-1318.89,0.00019911,2]
[381824132,1756359696221,-1150.89,0.00019911,2]
[381824133,1756359696231,-1290.7,0.00019911,2]
[381824134,1756359696240,-480.0,0.00019911,2]
[381824135,1756359696249,-480.0,0.0001997,2]
[381824136,1756359696258,-1750.90962523,0.0001997,2]
[381824137,1756359696275,-50.86037477,0.0001997,2]
[381824138,1756359696285,-485.11,0.0001997,2]
[381824139,1756359696294,-480.0,0.0001997,2]
[381824140,1756359696303,-1761.65,0.0001997,2]
[381824141,1756359696313,-3760.07287019,0.00019983,2]
[381824142,1756359696322,-838.67,0.00020069,2]
[381824143,1756359696331,-2623.64675504,0.0002007,2]
[381824144,1756359696356,-10000.01,0.0002007,2]
[381824145,1756359696398,-480.0,0.00019896,2]
[381824146,1756359696407,-5825.52037477,0.0002007,2]
[381824147,1756359763155,-3687.11212641,0.00019178,2]
[381824148,1756359763186,-516.29,0.00019696,2]
[381824149,1756359763216,-167.86152589,0.00019696,2]
[381824150,1756359763248,-480.0,0.00019696,2]
[381824151,1756359763337,-297.4826954,0.00019696,2]
[381824152,1756359763453,-445.0373046,0.00019696,2]
[381824153,1756359763489,-480.0,0.00019696,2]
[381824154,1756359763521,-1126.84,0.00019696,2]
[381824155,1756359763551,-622.52,0.00019696,2]
[381824156,1756359763581,-1099.23,0.00019696,2]
[381824157,1756359763609,-480.0,0.00019696,2]
[381824158,1756359763640,-480.0,0.00019696,2]
[381824159,1756359763671,-52.7553908,0.00019696,2]
[381824160,1756359763816,-427.2446092,0.00019696,2]
[381824161,1756359763849,-480.0,0.00019696,2]
[381824162,1756359763882,-1612.16,0.00019696,2]
[381824163,1756359763915,-300.0,0.00019795,2]
[381824164,1756359763951,-1957.4207816,0.00019796,2]
[381824165,1756359764055,-446.3592184,0.00019796,2]
[381824166,1756359764093,-1769.38,0.00019796,2]
[381824167,1756359764130,-2156.0,0.00019882,2]
[381824168,1756359764401,-3426.66,0.00019894,2]
[381824169,1756359764434,-1278.78,0.00019894,2]
[381824170,1756359764592,-589.13,0.00019894,2]
[381824171,1756359764624,-480.0,0.00019894,2]
[381824172,1756359764655,-480.0,0.00019896,2]
[381824173,1756359764686,-480.0,0.00019896,2]
[381824174,1756359764718,-819.59,0.00019896,2]
[381824175,1756359764749,-553.25,0.00019896,2]
[381824176,1756359764779,-480.0,0.00019896,2]
[381824177,1756359764808,-480.0,0.00019896,2]
[381824178,1756359764839,-150.0,0.00019896,2]
[381824179,1756359764869,-480.0,0.00019896,2]
[381824180,1756359764930,-480.0,0.00019896,2]
[381824181,1756359764960,-480.0,0.00019896,2]
[381824182,1756359764991,-480.0,0.00019896,2]
[381824183,1756359765022,-500.0,0.00019896,2]
[381824184,1756359765054,-500.0,0.00019896,2]
[381824185,1756359765091,-500.0,0.00019896,2]
[381824186,1756359765123,-480.0,0.00019896,2]
[381824187,1756359765154,-480.0,0.00019896,2]
[381824188,1756359765185,-480.0,0.00019896,2]
[381824189,1756359765215,-612.36,0.00019896,2]
[381824190,1756359765341,-480.0,0.00019696,2]
[381824191,1756359765372,-15.29,0.00019896,2]
[381824192,1756359765403,-500.0,0.00019896,2]
[381824193,1756359765434,-480.0,0.00019896,2]
[381824194,1756359765465,-480.0,0.00019896,2]
[381824195,1756359765495,-480.0,0.00019896,2]
[381824196,1756359765524,-480.0,0.00019896,2]
[381824197,1756359765554,-480.0,0.00019896,2]
[381824198,1756359765584,-480.0,0.00019896,2]
[381824199,1756359765613,-480.0,0.00019896,2]
[381824200,1756359765644,-425.9,0.00019896,2]
[381824201,1756359765933,-437.63,0.00019896,2]
[381824202,1756359765963,-480.0,0.00019896,2]
[381824203,1756359765995,-830.18,0.00019896,2]
[381824204,1756359766026,-531.34,0.00019896,2]
[381824205,1756359766056,-480.0,0.00019896,2]
[381824206,1756359766089,-480.0,0.00019896,2]
[381824207,1756359766119,-480.0,0.00019896,2]
[381824208,1756359766149,-480.0,0.00019896,2]
[381824209,1756359766181,-751.73,0.00019896,2]
[381824210,1756359766493,-480.0,0.00019896,2]
[381824211,1756359766525,-480.0,0.00019896,2]
[381824212,1756359766556,-480.0,0.00019896,2]
[381824213,1756359766587,-480.0,0.00019896,2]
[381824214,1756359766618,-500.0,0.00019899,2]
[381824215,1756359766648,-480.0,0.00019904,2]
[381824216,1756359766679,-480.0,0.00019904,2]
[381824217,1756359766710,-500.0,0.00019908,2]
[381824218,1756359766741,-500.0,0.00019908,2]
[381824219,1756359766772,-500.0,0.00019909,2]
[381824220,1756359767694,-480.0,0.0001991,2]
[381824221,1756359767715,-20.0,0.0001991,2]
[381824222,1756359767725,-480.0,0.0001991,2]
[381824223,1756359767749,-20.0,0.0001991,2]
[381824224,1756359767759,-460.0,0.0001991,2]
[381824225,1756359767775,-40.0,0.0001991,2]
[381824226,1756359767785,-440.0,0.0001991,2]
[381824227,1756359767801,-60.0,0.0001991,2]
[381824228,1756359767811,-440.0,0.0001991,2]
[381824229,1756359768080,-60.0,0.0001991,2]
[381824230,1756359768090,-440.0,0.0001991,2]
[381824231,1756359768115,-60.0,0.0001991,2]
[381824232,1756359768125,-440.0,0.0001991,2]
[381824233,1756359768143,-157.31,0.0001991,2]
[381824234,1756359768155,-82.7,0.00019911,2]
[381824235,1756359813760,-480.0,0.00019696,2]
[381824236,1756359813790,-2858.6,0.00019696,2]
[381824237,1756359813820,-488.4,0.00019696,2]
[381824238,1756359813850,-802.95,0.00019696,2]
[381824239,1756359813881,-241.7,0.00019696,2]
[381824240,1756359813984,-256.71,0.00019696,2]
[381824241,1756359814063,-506.08,0.00019696,2]
[381824242,1756359814097,-480.0,0.00019696,2]
[381824243,1756359814131,-588.96,0.00019696,2]
[381824244,1756359814162,-2303.62,0.00019795,2]
[381824245,1756359814194,-480.0,0.00019796,2]
[381824246,1756359814384,-3426.49,0.00019894,2]
[381824247,1756359814416,-480.0,0.00019894,2]
[381824248,1756359814447,-1059.39,0.00019894,2]
[381824249,1756359814519,-68.25,0.00019894,2]
[381824250,1756359814550,-480.0,0.00019896,2]
[381824251,1756359814581,-480.0,0.00019896,2]
[381824252,1756359814616,-481.71295404,0.00019896,2]
[381824253,1756359814647,-480.0,0.00019896,2]
[381824254,1756359814679,-480.0,0.00019896,2]
[381824255,1756359814711,-480.0,0.00019896,2]
[381824256,1756359814742,-597.86,0.00019896,2]
[381824257,1756359814774,-482.26227413,0.00019896,2]
[381824258,1756359814806,-633.86,0.00019896,2]
[381824259,1756359814836,-192.11954366,0.00019896,2]
[381824260,1756359815058,-287.88045634,0.00019896,2]
[381824261,1756359815091,-480.0,0.00019896,2]
[381824262,1756359815120,-511.06,0.00019896,2]
[381824263,1756359815150,-480.0,0.00019896,2]
[381824264,1756359815181,-480.0,0.00019896,2]
[381824265,1756359815211,-488.68068788,0.00019896,2]
[381824266,1756359815240,-480.0,0.00019896,2]
[381824267,1756359815269,-480.0,0.00019896,2]
[381824268,1756359815299,-480.0,0.00019896,2]
[381824269,1756359815328,-480.0,0.00019896,2]
[381824270,1756359815358,-224.76771156,0.00019896,2]
[381824271,1756359815538,-255.23228844,0.00019896,2]
[381824272,1756359815568,-480.0,0.00019896,2]
[381824273,1756359815599,-480.0,0.00019896,2]
[381824274,1756359815628,-480.0,0.00019896,2]
[381824275,1756359815659,-480.0,0.00019896,2]
[381824276,1756359815689,-480.0,0.00019896,2]
[381824277,1756359815719,-480.0,0.00019896,2]
[381824278,1756359815749,-401.68425171,0.00019896,2]
[381824279,1756359815778,-480.0,0.00019896,2]
[381824280,1756359815808,-482.97606612,0.00019896,2]
[381824281,1756359815838,-480.0,0.00019896,2]
[381824282,1756359815990,-667.12,0.00019897,2]
[381824283,1756359816022,-480.0,0.00019899,2]
[381824284,1756359816053,-480.0,0.0001991,2]
[381824285,1756359816085,-1340.69,0.0001991,2]
[381824286,1756359816121,-480.0,0.00019911,2]
[381824287,1756359816153,-480.0,0.00019911,2]
[381824288,1756359816188,-567.06,0.00019911,2]
[381824289,1756359816219,-490.4,0.00019911,2]
[381824290,1756359816400,-825.12,0.00019911,2]
[381824291,1756359816434,-770.3,0.00019911,2]
[381824292,1756359816467,-480.0,0.00019911,2]
[381824293,1756359816500,-1021.94,0.00019911,2]
[381824294,1756359816532,-621.17,0.00019911,2]
[381824295,1756359816690,-480.0,0.00019911,2]
[381824296,1756359816722,-500.0,0.00019912,2]
[381824297,1756359816752,-102.95,0.00019912,2]
[381824298,1756359816952,-397.05,0.00019912,2]
[381824299,1756359816983,-500.0,0.00019912,2]
[381824300,1756359817013,-500.0,0.00019912,2]
[381824301,1756359817043,-500.0,0.00019912,2]
[381824302,1756359817073,-500.0,0.00019912,2]
[381824303,1756359817107,-516.29,0.0001997,2]
[381824304,1756359817138,-480.0,0.0001997,2]
[381824305,1756359817169,-742.52,0.0001997,2]
[381824306,1756359817201,-480.0,0.0001997,2]
[381824307,1756359817316,-480.0,0.00019896,2]
[381824308,1756359817348,-1126.84,0.0001997,2]
[381824309,1756359817380,-622.52,0.0001997,2]
[381824310,1756359817411,-1099.23,0.0001997,2]
[381824311,1756359817441,-480.0,0.0001997,2]
[381824312,1756359817474,-480.0,0.0001997,2]
[381824313,1756359817505,-480.0,0.0001997,2]
[381824314,1756359819412,-104.76,0.00019896,2]
[381824315,1756359819445,-375.24,0.00019896,2]
[381824316,1756359819454,-247.28,0.00019896,2]
[381824317,1756359819475,-274.04,0.00019896,2]
[381824318,1756359819484,-480.0,0.0001997,2]
[381824319,1756359819494,-345.19,0.0001997,2]
[381824320,1756359819511,-480.0,0.0001997,2]
[381824321,1756359819535,-480.0,0.0001997,2]
[381824322,1756359819557,-306.97,0.0001997,2]
[381824323,1756359819566,-173.03,0.0001997,2]
[381824324,1756359819582,-306.97,0.0001997,2]
[381824325,1756359819592,-155.86,0.0001997,2]
[381824327,1756359883386,-300.0,0.00019695,2]
[381824328,1756359883420,-480.0,0.00019696,2]
[381824329,1756359883452,-1061.22,0.00019696,2]
[381824330,1756359883484,-480.0,0.00019696,2]
[381824331,1756359883515,-480.0,0.00019696,2]
[381824332,1756359883548,-1126.71,0.00019696,2]
[381824333,1756359883580,-581.01,0.00019696,2]
[381824334,1756359883612,-487.12,0.00019696,2]
[381824335,1756359884001,-7.89,0.00019696,2]
[381824336,1756359884033,-711.65,0.00019696,2]
[381824337,1756359884064,-793.68,0.00019696,2]
[381824338,1756359884094,-480.0,0.00019696,2]
[381824339,1756359884126,-804.65,0.00019696,2]
[381824340,1756359884159,-502.01,0.00019696,2]
[381824341,1756359884191,-480.0,0.00019696,2]
[381824342,1756359884224,-997.85,0.00019696,2]
[381824343,1756359884358,-619.66,0.00019696,2]
[381824344,1756359884391,-480.0,0.00019696,2]
[381824345,1756359884423,-480.0,0.00019696,2]
[381824346,1756359884455,-1695.66,0.00019795,2]
[381824347,1756359884486,-480.0,0.00019795,2]
[381824348,1756359884518,-480.0,0.00019796,2]
[381824349,1756359884550,-192.017492,0.00019863,2]
[381824350,1756359884581,-480.0,0.00019895,2]
[381824351,1756359884658,-481.07404517,0.00019895,2]
[381824352,1756359884690,-480.0,0.00019895,2]
[381824353,1756359884721,-480.0,0.00019895,2]
[381824354,1756359884754,-480.0,0.00019895,2]
[381824355,1756359884785,-497.0,0.00019895,2]
[381824356,1756359884814,-480.0,0.00019895,2]
[381824357,1756359884844,-435.36911963,0.00019896,2]
[381824358,1756359884874,-480.0,0.00019896,2]
[381824359,1756359884905,-589.64,0.00019896,2]
[381824360,1756359884935,-480.0,0.00019896,2]
[381824361,1756359885073,-480.0,0.00019896,2]
[381824362,1756359885103,-480.0,0.00019896,2]
[381824363,1756359885135,-759.06,0.00019896,2]
[381824364,1756359885167,-507.7,0.00019896,2]
[381824365,1756359885201,-480.0,0.00019896,2]
[381824366,1756359885233,-480.0,0.00019896,2]
[381824367,1756359885264,-607.68,0.00019896,2]
[381824368,1756359885295,-480.0,0.00019896,2]
[381824369,1756359885325,-480.0,0.00019896,2]
[381824370,1756359885356,-11.13,0.00019896,2]
[381824371,1756359885537,-468.87,0.00019896,2]
[381824372,1756359885567,-749.69,0.00019896,2]
[381824373,1756359885596,-480.0,0.00019896,2]
[381824374,1756359885628,-480.0,0.00019896,2]
[381824375,1756359885659,-508.54321134,0.00019896,2]
[381824376,1756359885690,-494.37,0.00019896,2]
[381824377,1756359885722,-480.0,0.00019896,2]
[381824378,1756359885797,-480.0,0.00019896,2]
[381824379,1756359885828,-480.0,0.00019896,2]
[381824380,1756359885858,-277.06357732,0.00019896,2]
[381824381,1756359886156,-480.0,0.00019795,2]
[381824382,1756359886191,-202.93642268,0.00019896,2]
[381824383,1756359886220,-480.0,0.00019896,2]
[381824384,1756359886253,-480.0,0.00019896,2]
[381824385,1756359886284,-480.0,0.00019896,2]
[381824386,1756359886315,-480.0,0.00019896,2]
[381824387,1756359886346,-566.01,0.00019896,2]
[381824388,1756359886378,-580.84,0.00019896,2]
[381824389,1756359886422,-482.07403029,0.00019896,2]
[381824390,1756359886466,-480.0,0.00019896,2]
[381824391,1756359886499,-96.28909406,0.00019896,2]
[381824392,1756359886703,-383.71090594,0.00019896,2]
[381824393,1756359886734,-480.0,0.00019896,2]
[381824394,1756359886764,-480.0,0.00019897,2]
[381824395,1756359886794,-618.68,0.00019897,2]
[381824396,1756359887057,-564.92,0.00019696,2]
[381824397,1756359887087,-480.0,0.00019895,2]
[381824398,1756359888243,-351.67823456,0.00019795,2]
[381824399,1756359888263,-128.32176544,0.00019795,2]